bitfinex-derivatives/quotes_SOLF0:USTF0_20251023
["timestamp","ask_amount","ask_price","bid_price","bid_amount"]
[1761222365970,44.84,189.27,189.2,4.71416099]
[1761222366158,44.84,189.27,189.19,2.86]
[1761222366471,44.84,189.27,189.2,4.71258243]
[1761222366672,44.84,189.27,189.19,2.86]
[1761222366972,4.7544,189.26,189.2,7.57163512]
[1761222367173,4.7544,189.26,189.2,2.86]
[1761222367963,4.7547,189.25,189.19,4.756]
[1761222369267,4.7547,189.25,189.17,7.6165]
[1761222369467,4.7547,189.25,189.18,4.72290047]
[1761222369671,4.7547,189.25,189.17,2.86]
[1761222369876,4.7547,189.25,189.18,4.72238023]
[1761222370071,4.7547,189.25,189.19,4.72238023]
[1761222370277,4.7547,189.25,189.17,2.86]
[1761222370476,4.7547,189.25,189.18,4.71880589]
[1761222370672,4.06077933,189.25,189.19,4.71880589]
[1761222370879,4.06077933,189.25,189.13,2.86]
[1761222371070,44.78,189.24,189.15,2.86]
[1761222371272,44.78,189.24,189.17,2.86]
[1761222371471,4.7553,189.23,189.17,2.86]
[1761222371873,4.7547,189.25,189.19,7.616]
[1761222373684,6.67602868,189.3,189.17,4.7565]
[1761222373685,4.7549,189.24,189.17,4.7565]
[1761222373878,4.7549,189.24,189.18,4.71895923]
[1761222374071,4.7549,189.24,189.17,4.7565]
[1761222374382,41.36,189.26,189.19,2.86]
[1761222375982,46.1145,189.26,189.2,9.47459172]
[1761222376182,46.1145,189.26,189.19,2.86]
[1761222376183,41.36,189.26,189.19,2.86]
[1761222376387,41.36,189.26,189.2,4.71907282]
[1761222376582,41.36,189.26,189.19,2.86]
[1761222376881,41.36,189.26,189.21,2.86]
[1761222377086,41.36,189.26,189.23,2.86]
[1761222377475,4.7532,189.31,189.24,4.7547]
[1761222377679,4.7532,189.31,189.25,2.86]
[1761222378186,4.7532,189.31,189.25,7.6145]
[1761222378382,44.76,189.32,189.25,2.86]
[1761222378580,44.76,189.32,189.26,4.71487848]
[1761222378784,11.53305686,189.46,189.28,2.86]
[1761222379093,11.53305686,189.46,189.27,4.71408011]
[1761222379094,4.39621083,189.45,189.3,2.86]
[1761222379385,4.39621083,189.45,189.21,44.76]
[1761222379386,32.66,189.44,189.32,2.86]
[1761222379582,32.66,189.44,189.33,4.71408011]
[1761222379788,32.66,189.44,189.32,2.86]
[1761222379789,6.67602868,189.45,189.32,2.86]
[1761222379976,4.7505,189.42,189.33,4.7524]
[1761222380283,49.5305,189.42,189.33,4.7524]
[1761222380889,4.7508,189.41,189.33,4.7524]
[1761222381383,6.67602868,189.41,189.26,2.86]
[1761222381584,11.06632265,189.41,189.27,4.70332132]
[1761222381784,11.06632265,189.41,189.28,4.70332132]
[1761222381990,11.06632265,189.41,189.26,2.86]
[1761222382287,4.752,189.36,189.28,7.6137]
[1761222382888,4.752,189.36,189.29,4.70380128]
[1761222383186,4.752,189.36,189.28,7.6137]
[1761222383392,20.29070956,189.4,189.26,4.7544]
[1761222383587,4.39070956,189.39,189.27,4.705884]
[1761222383887,4.39070956,189.39,189.28,4.705884]
[1761222384089,4.7525,189.34,189.24,7.6148]
[1761222384390,4.7525,189.34,189.25,4.7068413]
[1761222384687,4.7525,189.34,189.26,4.7068413]
[1761222384885,4.7525,189.34,189.27,4.7068413]
[1761222385186,4.7525,189.34,189.28,4.7068413]
[1761222385394,4.7525,189.34,189.24,2.86]
[1761222385690,4.7529,189.32,189.25,4.71210654]
[1761222385886,4.85702818,189.41,189.27,2.74]
[1761222386085,6.67602868,189.41,189.28,4.71210654]
[1761222386386,11.07437681,189.41,189.29,4.71210654]
[1761222386688,11.07437681,189.41,189.3,4.71210654]
[1761222386894,4.7514,189.38,189.21,2.74]
[1761222387089,6.67602868,189.41,189.21,2.74]
[1761222387991,4.7518,189.37,189.21,2.74]
[1761222388290,22.57602868,189.41,189.21,2.74]
[1761222388690,22.57602868,189.41,189.21,2.83]
[1761222389087,4.39876023,189.4,189.22,4.71181429]
[1761222389390,4.39876023,189.4,189.24,2.83]
[1761222389594,4.39876023,189.4,189.26,2.83]
[1761222389895,4.39876023,189.4,189.28,2.83]
[1761222390187,4.7521,189.36,189.29,4.71181429]
[1761222390395,4.7521,189.36,189.3,4.71181429]
[1761222390588,4.7521,189.36,189.28,7.5837]
[1761222390791,4.7521,189.36,189.29,4.7115966]
[1761222390990,4.7521,189.36,189.3,4.7115966]
[1761222391192,4.7521,189.36,189.28,7.5837]
[1761222391492,4.7521,189.36,189.29,4.71227819]
[1761222391689,4.7521,189.36,189.28,7.5837]
[1761222391884,4.7521,189.36,189.29,4.71227866]
[1761222392085,4.7521,189.36,189.3,4.71227866]
[1761222392280,44.78,189.38,189.31,4.7144786]
[1761222392489,4.39876023,189.37,189.29,2.83]
[1761222392697,4.39876023,189.37,189.3,4.71432724]
[1761222392992,4.39876023,189.37,189.31,4.71432724]
[1761222393290,4.39876023,189.37,189.29,2.83]
[1761222393496,4.39876023,189.37,189.3,4.716952]
[1761222393689,4.39876023,189.37,189.31,4.716952]
[1761222393988,4.7518,189.36,189.29,2.83]
[1761222394197,4.7518,189.36,189.3,4.71706234]
[1761222394388,4.7518,189.36,189.29,2.83]
[1761222394389,4.7518,189.36,189.31,4.71706234]
[1761222394690,4.7518,189.36,189.29,2.83]
[1761222394890,4.7518,189.36,189.3,4.71901976]
[1761222395090,4.7518,189.36,189.31,4.71901976]
[1761222395297,4.7518,189.36,189.29,2.83]
[1761222395501,4.39876023,189.37,189.3,9.47383703]
[1761222395694,4.39876023,189.37,189.31,4.72043703]
[1761222395894,4.39876023,189.37,189.29,2.83]
[1761222396195,4.39876023,189.37,189.3,4.72071887]
[1761222396390,4.39876023,189.37,189.31,4.72071887]
[1761222396699,6.67602868,189.34,189.21,2.83]
[1761222396888,4.7538,189.29,189.22,4.72585852]
[1761222397088,4.7538,189.29,189.23,4.72585852]
[1761222397294,44.74,189.3,189.24,4.72585852]
[1761222397495,4.85702818,189.36,189.25,7.55585852]
[1761222397797,44.74,189.35,189.26,4.72585852]
[1761222398000,4.47713979,189.34,189.25,2.83]
[1761222398295,4.47713979,189.34,189.26,4.73730715]
[1761222398487,4.7539,189.28,189.21,2.83]
[1761222398690,6.67602868,189.31,189.22,4.73927152]
[1761222398894,44.76,189.28,189.23,4.73927152]
[1761222399092,44.76,189.28,189.24,4.73927152]
[1761222399395,44.76,189.28,189.1,2.83]
[1761222399600,44.76,189.28,189.12,2.83]
[1761222399901,44.76,189.28,189.14,2.83]
[1761222400100,44.76,189.28,189.16,2.83]
[1761222400301,44.76,189.28,189.18,2.83]
[1761222400502,44.76,189.28,189.19,7.57183358]
[1761222400798,4.7545,189.26,189.2,4.74183358]
[1761222400999,4.7545,189.26,189.21,4.74183358]
[1761222401194,49.494,189.28,189.22,7.57183358]
[1761222401397,49.494,189.28,189.23,4.74183358]
[1761222401598,49.494,189.28,189.24,4.74183358]
[1761222401796,4.7544,189.26,189.18,7.5862]
[1761222402000,4.7544,189.26,189.19,4.74324694]
[1761222402203,4.7544,189.26,189.2,4.74324694]
[1761222402406,4.7544,189.26,189.21,4.74427254]
[1761222402697,4.7544,189.26,189.22,4.74427254]
[1761222403003,4.48311275,189.27,189.14,2.83]
[1761222403205,4.48311275,189.27,189.15,7.57620927]
[1761222403400,4.48311275,189.27,189.16,4.74620927]
[1761222403603,4.7555,189.22,189.17,4.74620927]
[1761222403803,4.7555,189.22,189.18,4.74620927]
[1761222404103,4.7555,189.22,189.19,4.74620927]
[1761222404291,4.7557,189.21,189.2,4.74909088]
[1761222404496,4.7557,189.21,189.15,2.83]
[1761222404806,4.7557,189.21,189.16,4.7486919]
[1761222405001,44.72,189.21,189.17,4.7486919]
[1761222405297,22.57602868,189.25,189.11,7.588]
[1761222405502,44.72,189.2,189.12,4.74968184]
[1761222405702,44.72,189.2,189.13,4.74968184]
[1761222405904,44.72,189.2,189.14,4.74968184]
[1761222406093,44.72,189.2,189.15,4.74968184]
[1761222406300,44.72,189.2,189.11,7.588]
[1761222406501,44.72,189.2,189.12,4.74965391]
[1761222406708,4.48607352,189.19,189.13,4.74965391]
[1761222406899,4.48607352,189.19,189.11,2.83]
[1761222407104,4.48607352,189.19,189.12,4.7499442]
[1761222407302,4.48607352,189.19,189.07,110.98349954]
[1761222407501,4.48607352,189.19,189.08,4.7484678]
[1761222407700,4.48607352,189.19,189.09,4.7484678]
[1761222407898,4.48607352,189.19,189.07,110.98349954]
[1761222408099,4.7579,189.12,189.08,4.7502644]
[1761222408303,44.72,189.12,189.03,2.83]
[1761222408603,4.7584,189.1,189.04,4.74787237]
[1761222408910,4.7584,189.1,189.05,4.74787237]
[1761222409204,4.759,189.08,188.99,7.5912]
[1761222409404,4.759,189.08,189.0,4.74461041]
[1761222409709,67.29602868,189.12,189.01,4.74461041]
[1761222409897,67.29602868,189.12,188.99,2.83]
[1761222409898,20.38033163,189.11,189.02,4.74461041]
[1761222410094,4.7587,189.09,188.99,2.83]
[1761222410299,4.7587,189.09,189.01,2.83]
[1761222410605,44.72,189.09,189.02,4.74266164]
[1761222410806,6.67602868,189.16,189.03,7.57266164]
[1761222411007,44.72,189.15,189.04,4.74266164]
[1761222411195,4.7586,189.1,189.03,2.83]
[1761222411395,4.7586,189.1,189.0,4.7609]
[1761222411594,49.4786,189.1,189.01,4.73292761]
[1761222411807,49.4786,189.1,189.02,4.73292761]
[1761222412002,49.4786,189.1,189.03,4.73292761]
[1761222412197,49.4786,189.1,189.01,7.5905]
[1761222412403,49.4786,189.1,189.02,4.72985154]
[1761222412602,44.72,189.1,188.94,2.83]
[1761222412811,44.72,189.1,188.96,2.83]
[1761222413107,44.72,189.1,188.98,2.83]
[1761222413306,44.72,189.1,188.99,7.55925785]
[1761222413501,44.72,189.1,189.0,4.72925785]
[1761222413708,44.72,189.1,188.99,2.83]
[1761222413909,44.72,189.1,189.0,4.72628886]
[1761222414109,4.7591,189.08,188.99,7.5912]
[1761222414313,4.7591,189.08,189.0,4.72606823]
[1761222414510,4.7591,189.08,188.99,7.5912]
[1761222414710,4.7591,189.08,189.01,2.83]
[1761222418017,44.72,189.09,189.01,7.5905]
[1761222418712,44.72,189.09,189.02,2.85]
[1761222418905,4.7584,189.1,189.03,2.85]
[1761222420616,4.7584,189.1,189.03,7.6099]
[1761222420911,44.7,189.11,189.04,4.70374722]
[1761222421104,44.7,189.11,189.05,2.85]
[1761222421812,44.7,189.11,189.05,4.7594]
[1761222422111,44.7,189.11,189.06,2.85]
[1761222422720,44.7,189.11,188.99,2.85]
[1761222423016,44.7,189.11,189.01,2.85]
[1761222423218,44.7,189.11,189.08,2.85]
[1761222424211,44.7,189.11,189.09,2.85]
[1761222424411,44.7,189.11,189.05,2.85]
[1761222424614,44.7,189.11,188.98,2.85]
[1761222424919,44.7,189.11,188.99,7.55460502]
[1761222425118,4.7593,189.07,189.0,4.70460502]
[1761222425322,44.7,189.11,189.01,2.85]
[1761222425619,4.7588,189.09,189.01,2.85]
[1761222425817,4.7588,189.09,189.02,4.7050722]
[1761222426005,4.7588,189.09,189.01,2.85]
[1761222426207,4.7588,189.09,189.02,4.70516908]
[1761222426410,4.7588,189.09,189.01,2.85]
[1761222426613,4.7588,189.09,189.02,4.70666834]
[1761222426813,4.7588,189.09,189.01,2.85]
[1761222427020,4.7588,189.09,189.02,9.4670762]
[1761222427212,4.7588,189.09,189.02,4.7604]
[1761222428917,4.7588,189.09,189.02,7.6104]
[1761222429110,44.7,189.11,189.03,9.44906211]
[1761222429314,44.7,189.11,189.03,4.7601]
[1761222430615,4.7587,189.1,189.02,2.85]
[1761222431124,4.7587,189.1,189.02,7.6104]
[1761222431326,4.7587,189.1,189.03,4.69055282]
[1761222431522,4.7587,189.1,189.02,7.6104]
[1761222431819,4.7587,189.1,189.03,9.45065347]
[1761222432122,4.7587,189.1,189.03,4.7601]
[1761222432926,4.7587,189.1,189.04,4.7599]
[1761222433222,44.7,189.11,189.04,7.6099]
[1761222433616,49.4584,189.11,189.04,7.6099]
[1761222434127,4.7587,189.1,189.02,4.7604]
[1761222434327,4.7587,189.1,189.03,4.69359904]
[1761222434519,4.7587,189.1,189.02,4.7604]
[1761222434720,4.06403605,189.08,189.03,4.69544836]
[1761222435024,4.06403605,189.08,189.02,4.7604]
[1761222435224,4.7594,189.07,189.0,7.6109]
[1761222435422,4.06403605,189.08,189.0,2.85]
[1761222435617,4.06403605,189.04,188.95,2.85]
[1761222435926,8.82503605,189.01,188.96,4.70149757]
[1761222436223,4.7617,188.98,188.91,2.85]
[1761222436420,4.06403605,188.97,188.92,4.70666376]
[1761222436621,4.06403605,188.97,188.84,2.85]
[1761222436818,1.59820115,188.93,188.9,2.85]
[1761222437123,1.59820115,188.93,188.91,4.71036482]
[1761222437326,1.59820115,188.93,188.86,2.85]
[1761222437528,1.59820115,188.93,188.87,4.71092501]
[1761222437727,1.59820115,188.91,188.88,4.7116504]
[1761222438028,1.59820115,188.91,188.89,4.7116504]
[1761222438223,44.66,188.96,188.9,4.7116504]
[1761222438526,44.66,188.96,188.78,168.66461718]
[1761222438527,1.59820115,188.93,188.91,4.71162779]
[1761222438731,48.7293026,188.96,188.89,2.85]
[1761222438925,48.7093026,188.96,188.9,4.71147308]
[1761222439119,48.7093026,188.96,188.91,4.71147308]
[1761222439324,48.7093026,188.96,188.89,2.85]
[1761222439524,48.7093026,188.96,188.9,4.71231915]
[1761222439725,48.7093026,188.96,188.91,4.71231915]
[1761222440027,53.4716026,188.96,188.89,2.85]
[1761222440231,44.64,188.96,188.9,4.71014947]
[1761222440434,15.9,189.06,188.92,2.85]
[1761222440733,4.0693026,188.96,188.93,4.71014947]
[1761222440925,4.0693026,188.96,188.88,2.85]
[1761222441122,4.0693026,188.96,188.89,4.71283499]
[1761222441426,4.0693026,188.96,188.9,4.71283499]
[1761222441633,4.0693026,188.96,188.91,4.71283499]
[1761222441930,4.0693026,188.96,188.92,4.71283499]
[1761222442131,4.0693026,188.96,188.93,4.71283499]
[1761222442329,4.0693026,188.96,188.88,7.6139]
[1761222442523,49.422,188.97,188.89,9.47995232]
[1761222442725,44.66,188.97,188.9,4.71635232]
[1761222442932,44.66,188.97,188.91,4.71635232]
[1761222443128,44.66,188.97,188.92,4.71635066]
[1761222443330,44.66,188.97,188.93,4.71635066]
[1761222443530,44.66,188.97,188.9,4.7634]
[1761222443730,44.66,188.97,188.91,4.71788928]
[1761222443936,44.66,188.97,188.92,4.71788928]
[1761222444137,44.66,188.97,188.93,4.71788928]
[1761222444336,44.66,188.97,188.94,4.71889933]
[1761222444636,44.66,188.97,188.88,7.614]
[1761222444835,44.66,188.97,188.89,4.71843706]
[1761222445036,44.66,188.97,188.9,4.71843706]
[1761222445235,44.66,188.97,188.91,4.71843706]
[1761222445535,44.66,188.97,188.92,4.71843706]
[1761222445736,44.66,188.97,188.93,4.71843706]
[1761222445938,44.66,188.97,188.94,4.71843706]
[1761222446242,44.66,188.97,188.9,4.7634]
[1761222446435,44.66,188.97,188.91,4.72145549]
[1761222446638,44.66,188.97,188.92,4.72145549]
[1761222446829,44.66,188.97,188.93,4.72145549]
[1761222447140,44.66,188.97,188.94,4.72145549]
[1761222447443,44.66,188.97,188.95,4.72390402]
[1761222447739,44.66,188.97,188.9,4.7634]
[1761222447935,44.66,188.97,188.91,4.72335116]
[1761222448135,44.66,188.97,188.92,4.72335116]
[1761222448335,44.66,188.96,188.93,4.72335116]
[1761222448532,44.66,188.96,188.94,4.72335116]
[1761222448736,44.66,188.96,188.95,4.72335116]
[1761222448948,44.66,188.96,188.9,4.7634]
[1761222450044,44.66,188.96,188.88,2.85]
[1761222450943,44.66,188.96,188.89,4.7636]
[1761222451337,44.66,188.96,188.9,2.85]
[1761222451536,44.66,189.01,188.94,4.7625]
[1761222452047,44.66,189.01,188.97,2.85]
[1761222452245,4.0693026,189.07,188.97,2.85]
[1761222452448,44.68,189.06,188.97,2.85]
[1761222452745,4.7602,189.04,188.97,7.6116]
[1761222453151,4.40635666,189.05,188.93,2.85]
[1761222453341,4.40635666,189.05,188.95,4.7622]
[1761222453342,8.8297026,189.03,188.95,4.7622]
[1761222453649,8.8297026,189.03,188.93,2.85]
[1761222453650,4.0693026,189.03,188.93,2.85]
[1761222453839,4.7615,188.99,188.86,2.85]
[1761222454036,49.4415,188.99,188.86,2.85]
[1761222454238,48.7493026,188.99,188.86,2.85]
[1761222454548,48.7493026,188.99,188.87,2.85]
[1761222455745,4.7624,188.95,188.87,7.6142]
[1761222455952,8.8317026,188.95,188.87,7.6142]
[1761222456149,8.8317026,188.95,188.87,2.85]
[1761222456346,8.8317026,188.95,188.88,4.764]
[1761222456642,8.8317026,188.95,188.87,2.85]
[1761222457546,4.7627,188.94,188.83,2.85]
[1761222457747,4.0693026,188.95,188.83,2.85]
[1761222457948,44.66,188.94,188.83,2.85]
[1761222458443,44.68,188.93,188.87,4.7642]
[1761222458648,1.59846311,188.89,188.87,4.7642]
[1761222458946,15.89,189.02,188.83,4.44846311]
[1761222459143,4.85702818,189.03,188.86,2.85]
[1761222459144,1.59846311,188.93,188.86,2.85]
[1761222459656,1.59846311,188.91,188.84,2.85]
[1761222460358,1.59846311,188.91,188.89,7.6136]
[1761222460559,1.59846311,188.93,188.9,2.85]
[1761222461953,1.59846311,188.93,188.91,4.7632]
[1761222462154,1.59846311,188.93,188.91,7.6132]
[1761222462354,1.59846311,188.93,188.92,2.85]
[1761222462960,1.59846311,188.93,188.91,4.7632]
[1761222463259,4.7619,188.97,188.91,4.7632]
[1761222463463,1.59846311,188.92,188.91,4.7632]
[1761222465665,1.59846311,188.92,188.91,7.6132]
[1761222467062,1.59846311,188.92,188.91,4.7632]
[1761222468961,1.59846311,188.92,188.89,4.7637]
[1761222469173,1.59846311,188.92,188.89,7.6137]
[1761222469473,4.7622,188.96,188.89,7.6137]
[1761222469663,1.59846311,188.92,188.9,2.85]
[1761222470270,1.59846311,188.92,188.9,7.6135]
[1761222470471,1.59846311,188.94,188.91,2.85]
[1761222471275,1.59846311,188.96,188.91,2.85]
[1761222471776,1.59846311,188.97,188.91,2.85]
[1761222471973,1.59846311,188.97,188.92,4.7629]
[1761222472270,1.59846311,188.95,188.84,2.85]
[1761222472475,1.59846311,188.95,188.88,2.85]
[1761222472974,1.59846311,188.95,188.91,7.6132]
[1761222475078,4.762,188.97,188.92,7.613]
[1761222475375,1.59846311,188.97,188.93,2.85]
[1761222476977,1.59846311,188.97,188.93,7.6127]
[1761222477668,1.59846311,188.97,188.93,4.7627]
[1761222477877,1.59846311,188.97,188.94,2.85]
[1761222478375,1.59846311,188.97,188.93,4.7627]
[1761222479577,1.59846311,188.97,188.93,7.5227]
[1761222479778,1.59846311,188.97,188.94,2.76]
[1761222481683,6.40718701,189.04,188.94,2.76]
[1761222481684,1.59846311,189.07,188.96,2.76]
[1761222481882,1.59846311,189.07,189.02,2.76]
[1761222482186,1.59846311,189.05,189.01,4.7606]
[1761222482374,1.59846311,189.05,189.02,2.76]
[1761222482977,1.59846311,189.07,189.02,4.7604]
[1761222483180,1.59846311,189.07,189.03,2.76]
[1761222483478,1.59846311,189.09,189.03,2.76]
[1761222483682,1.59846311,189.07,189.01,2.76]
[1761222484181,4.85702818,189.14,189.04,2.76]
[1761222484182,1.59846311,189.09,189.04,2.76]
[1761222484383,1.59846311,189.11,189.04,2.76]
[1761222484679,1.59846311,189.14,189.06,2.76]
[1761222485284,1.59846311,189.12,189.06,7.5195]
[1761222485482,1.59846311,189.1,189.06,2.76]
[1761222485687,1.59846311,189.08,189.02,2.76]
[1761222487086,1.59846311,189.08,189.04,4.7599]
[1761222487281,1.59846311,189.08,189.04,7.5199]
[1761222487482,1.59846311,189.08,189.05,2.76]
[1761222488486,4.7585,189.11,189.05,2.76]
[1761222488685,1.59846311,189.09,189.05,2.76]
[1761222491491,1.59846311,189.07,189.01,7.5206]
[1761222491788,1.59846311,189.05,189.02,2.76]
[1761222492384,1.59846311,189.06,189.02,2.76]
[1761222492789,1.59846311,189.08,189.02,2.76]
[1761222494185,1.59846311,189.08,189.04,2.76]
[1761222494392,1.59846311,189.06,188.97,1.59846311]
[1761222494687,60.53,189.15,188.98,2.76]
[1761222494688,2.49451845,189.04,188.98,2.76]
[1761222495691,2.49451845,189.04,188.92,2.76]
[1761222495877,4.7607,189.02,188.95,4.7621]
[1761222496078,4.7607,189.02,188.94,2.76]
[1761222497090,4.7607,189.02,188.96,4.7619]
[1761222499095,2.49451845,189.04,188.98,2.76]
[1761222499096,4.7601,189.04,188.98,2.76]
[1761222499392,2.49451845,189.06,188.98,2.76]
[1761222500092,2.49451845,189.09,188.98,2.76]
[1761222501089,4.7599,189.05,188.98,2.76]
[1761222501287,2.49451845,189.09,188.98,2.76]
[1761222501492,2.49451845,189.09,188.91,2.49451845]
[1761222501493,7.25341845,189.09,189.01,7.5206]
[1761222501692,7.25341845,189.09,189.02,2.76]
[1761222502082,4.7592,189.08,189.02,2.76]
[1761222502386,4.7592,189.08,189.01,4.7606]
[1761222502591,2.49451845,189.09,189.01,4.7606]
[1761222503294,2.49451845,189.09,189.01,7.5206]
[1761222504095,4.7595,189.07,189.01,7.5206]
[1761222504393,4.7595,189.07,188.99,4.7613]
[1761222504596,4.7599,189.05,188.96,2.76]
[1761222505996,4.7599,189.05,188.97,4.7616]
[1761222508593,2.49451845,189.06,188.96,2.76]
[1761222510093,4.7607,189.02,188.96,2.76]
[1761222510794,4.7609,189.01,188.96,2.76]
[1761222510994,4.7609,189.01,188.89,4.91079174]
[1761222510995,2.49451845,189.03,188.93,4.7627]
[1761222511303,2.49451845,189.03,188.93,7.6327]
[1761222512098,4.7612,189.0,188.93,7.6327]
[1761222514002,2.49451845,188.99,188.89,2.87]
[1761222515298,4.7619,188.97,188.89,2.87]
[1761222515499,2.49451845,188.99,188.89,2.87]
[1761222515895,4.762,188.97,188.89,7.6337]
[1761222516297,2.49451845,188.99,188.89,7.6337]
[1761222516989,2.49451845,188.96,188.89,2.87]
[1761222517189,2.49451845,188.96,188.85,2.87]
[1761222517594,4.7632,188.92,188.85,2.87]
[1761222518096,4.49131425,188.99,188.79,49.53079174]
[1761222518097,4.7635,188.91,188.83,4.7652]
[1761222518300,4.7635,188.91,188.83,7.6352]
[1761222518602,6.9858327,188.96,188.84,4.89571729]
[1761222518791,6.9858327,188.96,188.85,4.89571729]
[1761222518993,6.9858327,188.96,188.86,4.89571729]
[1761222519191,6.9858327,188.96,188.87,4.89571729]
[1761222519396,6.9858327,188.96,188.88,4.89571729]
[1761222519594,2.49451845,188.96,188.83,7.6352]
[1761222519894,4.7639,188.89,188.84,4.89436028]
[1761222520093,2.49451845,188.93,188.85,4.89436028]
[1761222520295,2.49451845,188.93,188.86,4.89436028]
[1761222520296,44.64,188.92,188.86,4.89436028]
[1761222520490,44.64,188.92,188.79,5.36451845]
[1761222520694,44.64,188.92,188.8,4.89325769]
[1761222520900,4.4912079,188.91,188.81,4.89325769]
[1761222521097,4.4912079,188.91,188.85,2.49451845]
[1761222521300,44.64,188.92,188.85,5.36451845]
[1761222521600,44.64,188.92,188.86,4.88858746]
[1761222521898,2.49451845,188.98,188.85,5.36451845]
[1761222522105,44.64,188.97,188.86,4.88830363]
[1761222522402,4.48640242,188.96,188.87,7.75531699]
[1761222522704,4.763,188.93,188.87,2.87]
[1761222523793,4.763,188.93,188.82,2.49451845]
[1761222523794,4.7619,188.97,188.92,2.49451845]
[1761222524004,4.7619,188.97,188.92,5.36451845]
[1761222524200,4.7619,188.97,188.82,2.49451845]
[1761222524201,4.48122967,188.99,188.89,2.49451845]
[1761222524800,4.7625,188.95,188.89,2.49451845]
[1761222525001,4.7625,188.95,188.9,4.88132664]
[1761222525197,4.7625,188.95,188.89,2.49451845]
[1761222525410,4.7627,188.94,188.89,2.49451845]
[1761222525905,4.7631,188.92,188.86,2.49451845]
[1761222526096,44.64,189.0,188.87,4.87784051]
[1761222526097,2.49451845,188.96,188.87,4.87784051]
[1761222526294,4.7633,188.92,188.84,2.87]
[1761222526508,4.7633,188.92,188.85,4.8766599]
[1761222526812,4.7633,188.92,188.86,4.8766599]
[1761222527007,4.7633,188.92,188.84,2.87]
[1761222527308,4.7633,188.92,188.85,4.87559382]
[1761222527508,4.7633,188.92,188.86,4.87559382]
[1761222527697,4.7633,188.92,188.84,2.87]
[1761222527901,4.7633,188.92,188.85,4.87341348]
[1761222528101,4.7633,188.92,188.86,10.23793193]
[1761222528301,4.7633,188.92,188.86,5.36451845]
[1761222529604,4.7626,188.94,188.87,2.87]
[1761222529805,4.7626,188.94,188.89,2.49451845]
[1761222530111,4.7626,188.94,188.9,2.87]
[1761222530409,4.7621,188.96,188.9,2.87]
[1761222530705,44.64,188.97,188.9,2.87]
[1761222531213,2.49451845,189.01,188.9,2.87]
[1761222531406,44.64,189.0,188.92,5.36451845]
[1761222531711,4.47750798,188.99,188.92,5.36451845]
[1761222533011,4.7617,188.98,188.92,5.36451845]
[1761222534511,4.47750798,188.99,188.89,2.49451845]
[1761222534712,44.64,188.98,188.9,4.87665816]
[1761222534913,44.64,188.98,188.91,4.87665816]
[1761222535210,44.64,188.98,188.89,2.49451845]
[1761222535412,44.64,188.98,188.9,4.87916354]
[1761222535609,44.64,188.98,188.91,4.87916354]
[1761222535810,44.64,188.98,188.9,2.87]
[1761222536014,4.7622,188.96,188.91,7.75184305]
[1761222536216,4.7622,188.96,188.92,4.88390476]
[1761222536413,4.7622,188.96,188.89,5.36451845]
[1761222536609,4.7622,188.96,188.9,4.8846527]
[1761222536814,4.7622,188.96,188.92,2.87]
[1761222537114,7.4026371,189.06,188.95,2.49451845]
[1761222537314,44.64,189.02,188.95,2.49451845]
[1761222537511,4.48489991,189.01,188.95,2.49451845]
[1761222538018,4.48489991,189.01,188.92,5.36451845]
[1761222538217,4.7618,188.98,188.93,4.88478539]
[1761222538412,4.7618,188.98,188.94,4.88478539]
[1761222538612,4.7618,188.98,188.91,4.7633]
[1761222538814,4.7618,188.98,188.92,4.88628915]
[1761222539015,4.7618,188.98,188.93,4.88628915]
[1761222539216,4.7618,188.98,188.94,4.88628915]